{"text_format":"1","workbook":"xlsx","n_sheets":5,"sheets":["設定","入力時の注意事項","様式２（表紙）","様式３（機能別）","別紙１（未充足要件）"],"not_rendered":{"charts":0,"images":0,"macros":1,"external_links":0,"defined_names":4,"comments":2,"pivot_tables":0},"unopened":[],"bounds":{"document_bytes":16777216,"sheet_cells":100000,"rows_first":2000,"rows_last":500,"rows_between":2000,"halvings":0,"cell_chars":16384,"cell_head_chars":4096},"cells_cut":0,"cells_raw":0,"read":"whole","date_system":"1900"}

{"sheet":"設定","index":0,"n_rows":12,"n_cols":8,"rows_kept":12,"cut":false,"hidden":true,"merged":[]}
["有効","条件元シート","条件元セル","条件値","対象シート","対象範囲","入力値","条件不一致時の入力値"]
[0,"別紙4 相談支援体制","C9","未実施","別紙4 相談支援体制","C10","なし"]
[0,"別紙4 相談支援体制","C14,15","未実施,未実施","別紙4 相談支援体制","C16","なし"]
[0,"別紙4 相談支援体制","C20","未実施","別紙4 相談支援体制","B21","A","A/-"]
[1,"別紙２（第三者認定）","C10","なし","別紙２（第三者認定）","D10","なし"]
[1,"別紙２（第三者認定）","C22","なし","別紙２（第三者認定）","D22","なし"]
[1,"別紙９（がん相談支援センター）","D11","未実施","別紙９（がん相談支援センター）","D12","なし"]
[1,"別紙９（がん相談支援センター）","D13","未実施","別紙９（がん相談支援センター）","D14","なし"]
[1,"別紙９（がん相談支援センター）","D13","未実施","別紙９（がん相談支援センター）","D15","なし"]
[1,"別紙９（がん相談支援センター）","D13","未実施","別紙９（がん相談支援センター）","D16","なし"]
[1,"別紙９（がん相談支援センター）","D17 ","未実施","別紙９（がん相談支援センター）","D18","なし"]
[1,"別紙９（がん相談支援センター）","D19","未実施","別紙９（がん相談支援センター）","D20","なし"]

{"sheet":"入力時の注意事項","index":1,"n_rows":28,"n_cols":6,"rows_kept":28,"cut":false,"hidden":false,"merged":[[24,2,24,6],[0,0,0,7],[1,1,1,6],[6,2,6,6],[7,2,7,6],[12,2,12,6],[13,2,13,6],[15,2,15,6],[16,2,16,6],[17,2,17,6],[19,2,19,6],[23,2,23,6]]}
["がんゲノム医療中核拠点病院等　現況報告書の入力について\n以下をご注意ください。"]
[null,"基本フォーマットからの改変（行や列の挿入や削除など）により、データの抽出が正しく行われないことがあります。データの抽出が正しくされなければ、指定要件が満たされているかどうかを確認できません。"]
["■","以下のような行為はデータ抽出時に不具合を起こす原因となります。"]
[null,null,"・行や列の挿入や削除"]
[null,null,"・基本フォーマットと異なるセルの貼り付け"]
[null,null,"・シート名の変更やシートのコピー・移動・挿入・削除"]
[null,null,"これらによる不具合を防ぐため、シートとブックにはパスワードが設定されています。作業用にパスワードを解除したファイルを提供しておりますが、パスワードを解除した作業用ファイルによる提出は受け付けません。"]
[null,null,"差し替えは本体ファイルごとで行います。修正した本体ファイルのほかに、修正箇所と修正内容を明記したものを別途提出してください。"]
[]
["■","提出前に不備がないか確認してください。"]
[null,"表紙や各シートで入力チェック欄を設けています。"]
[null,"□","入力チェック欄を機能させるために"]
[null,null,"・様式2（表紙）シートに病院名を記入してください。なお、病院名を記載する際は、留意事項を確認してください。"]
[null,null,"・過去の現況報告書で提出された情報をもとに、一定の水準以上の数値を記入された場合は、確認を促すアラートが表示されます。アラートが表示された場合は、入力した数値をご確認ください。数値に問題がなければ、アラートが表示されたままでも問題ありません。"]
[null,"□","表紙"]
[null,null,"・一覧で各シートの入力状況を確認することができます。「未入力あり」の文字がある場合は、そのシートを確認してください。"]
[null,null,"・様式が「任意」となっているシートにおいて、「別添資料有無」欄で「あり」が選択されている場合は別添ファイルの提出漏れがないか、確認してください。"]
[null,null,"提出前には表紙を見て、「未入力」の文字がないか、別添ファイルの添付漏れがないか、確認してください。"]
[null,"□","各シート"]
[null,null,"・様式3（機能別）では、一部、回答によって、その後に続く項目が「必須」等か「要件に該当なし」かが自動的に設定される箇所があります（「Ａ（またはB、C）/-」となっている箇所です）。"]
[null,null,"・入力セルには3種類あります。入力規則に従って記入してください。"]
[]
[null,null,"自由記載","数値入力","選択肢から入力","他のセルから転記"]
[null,null,"・印刷範囲外にメモ欄を設けています。データの抽出対象ではありませんが、提出前には個人情報などが残っていないか確認してください。"]
[null,null,"本シートと様式2（表紙）以外は公開対象となります。記載内容に個人情報などが含まれないよう注意してください。"]
[]
[null,"□","別添ファイル"]
[null,null,"・別添ファイル名には該当する別紙番号を頭に付けてください。　例）別紙7_別添.xls"]

{"sheet":"様式２（表紙）","index":2,"n_rows":19,"n_cols":5,"rows_kept":19,"cut":false,"hidden":false,"merged":[]}
[null,"様式２（表紙）"]
[]
[null,null,"留意事項"]
["病院名",null,"名称は、医療法第７条第１項又は医療法施行令第４条第１項の規定に基づき都道府県に提出した開設許可の申請書又は変更の届出に記載した申請時点の名称を記載してください。"]
["保険医療機関コード\n（10桁）",null,"半角数字10桁で入力してください"]
["所属部署名・役職"]
["担当者名"]
["電話",null,"半角数字（ハイフンを含まない）にて入力してください。"]
["e-mail（代表）",null,"病院アドレスがない場合は空欄として下さい。"]
["所在地（都道府県から記載）"]
["がん診療連携拠点病院等の指定状況",null,"申請時の指定状況を入力してください。"]
["小児がん拠点病院等の指定状況",null,"申請時の指定状況を入力してください。"]
[]
["提出資料一覧"]
["資料番号","対象","内容","入力済／未入力あり／不要","別添資料有無"]
["様式２","全ての施設","表紙",{"$f":"IF(OR(B4=\"\",B5=\"\",B6=\"\",B7=\"\",B8=\"\",B10=\"\",B11=\"\",B12=\"\"),\"未入力あり\",\"入力済み\")","v":"未入力あり"}]
["様式３","全ての施設","機能別",{"$f":"IF('様式３（機能別）'!M2=\"入力済み\",\"入力済み\",\"未入力あり\")","v":"未入力あり"}]
["別紙１","未充足要件がある施設のみ","未充足要件\n最初は「不要」と表示されます。未充足要件がある場合は必ず別紙１上部のボタンを押下し、該当要件を抽出・記載してください。",{"$f":"IF('別紙１（未充足要件）'!E2=\"入力済み\",\"入力済み\",IF(OR('別紙１（未充足要件）'!E2=\"記載不要\",'別紙１（未充足要件）'!E2=\"不要\"),\"不要\",\"未入力あり\"))","v":"不要"}]
["提出前にD列に「未入力あり」の文字がないか、別添ファイルの添付漏れがないか、確認をして提出ください。"]

{"sheet":"様式３（機能別）","index":3,"n_rows":146,"n_cols":13,"rows_kept":146,"cut":false,"hidden":false,"merged":[]}
[null,null,null,null,null,null,null,"様式３（機能別）"]
["未入力の質問番号については、該当箇所が塗りつぶし表示となります。",null,null,null,null,null,null,{"$f":"'様式２（表紙）'!B4&\"\"","v":""},null,null,{"$f":"IF(COUNTIF(M6:M228,\"未入力あり\")>0,\"未入力有り\",\"入力済み\")","v":"未入力有り"},null,{"$f":"IF(COUNTIF(M6:M228,\"未入力あり\")>0,\"未入力有り\",\"入力済み\")","v":"未入力有り"}]
[]
[null,null,null,null,null,null,null,"申請時点の充足状況を記載してください。","整備指針上の要件\n Ａ：必須\n Ｂ：原則\n C：望ましい\n - ：参考","回答欄","留意事項"]
["質問番号",null,"Ⅳ  がんゲノム医療連携病院について"]
[1,null,null,null,null,null,null,"厚生労働大臣が指定するがん診療連携拠点病院等又は小児がん拠点病院等として指定されている。","-",null,null,null,{"$f":"IF(J6=\"\",\"未入力あり\",\"〇\")","v":"未入力あり"}]
[null,null,null,"１　診療体制"]
[null,null,null,null,"（１）診療機能"]
[null,null,null,null,null,"①　がん遺伝子パネル検査について"]
[{"$f":"A6+1","v":2},null,null,null,null,null,"ア","外部機関による技術能力についての施設認定（以下「第三者認定」という。）を受けた臨床検査室を有する。\n※ここでの第三者認定とは「ISO15189」または「CAP認定」のことである。","C",null,null,null,{"$f":"IF(J10=\"\",\"未入力あり\",\"〇\")","v":"未入力あり"}]
[{"$f":"A10+1","v":3},null,null,null,null,null,"イ","第三者認定を受けた病理検査室を有する。\n※ここでの第三者認定とは「ISO15189」または「CAP認定」のことである。","C",null,null,null,{"$f":"IF(J11=\"\",\"未入力あり\",\"〇\")","v":"未入力あり"}]
[{"$f":"A11+1","v":4},null,null,null,null,null,null,"診療における組織検体の取扱いについて、一般社団法人日本病理学会策定による「ゲノム診療用病理組織検体取扱い規程」に基づき実施している。","A",null,null,null,{"$f":"IF(J12=\"\",\"未入力あり\",IF(J12=\"はい\",\"○\",\"×\"))","v":"未入力あり"}]
[{"$f":"A12+1","v":5},null,null,null,null,null,null,"院内の取扱いの具体的な手順等が明文化されており、当該手続きに従ってなされた処理等が、適切に記録している。","A",null,null,null,{"$f":"IF(J13=\"\",\"未入力あり\",IF(J13=\"はい\",\"○\",\"×\"))","v":"未入力あり"}]
[{"$f":"A13+1","v":6},null,null,null,null,null,"ウ","準備した検体について、連携するがんゲノム医療中核拠点病院等に適切に送付できる体制が整備されている。","A",null,null,null,{"$f":"IF(J14=\"\",\"未入力あり\",IF(J14=\"はい\",\"○\",\"×\"))","v":"未入力あり"}]
[null,null,null,null,null,null,null,"がん遺伝子パネル検査の患者説明文書、同意書を電子媒体で別途添付してください。(別添１)\n※別添１は、現在使用している、あるいは使用を予定している文書を添付してください。","-","別添１",null,null,{"$f":"IF(J15=\"\",\"未入力あり\",\"〇\")","v":"〇"}]
[null,null,null,null,null,"②　遺伝カウンセリング及び遺伝診療等について"]
[{"$f":"A14+1","v":7},null,null,null,null,null,"ア","がん遺伝子パネル検査の結果として、生殖細胞系列に病的バリアントが同定された場合もしくは疑われた場合等必要に応じて、臨床的有用性を考慮し、患者に結果開示の意思を確認した上で適切に遺伝カウンセリングを実施できること。","A",null,null,null,{"$f":"IF(J17=\"\",\"未入力あり\",IF(J17=\"はい\",\"○\",\"×\"))","v":"未入力あり"}]
[{"$f":"A17+1","v":8},null,null,null,null,null,null,"がん遺伝子パネル検査の結果として、生殖細胞系列に病的バリアントが同定された場合もしくは疑われた場合等必要に応じて、臨床的有用性を考慮し、患者に結果開示の意思を確認した上で適切に遺伝診療を実施できること。","A",null,null,null,{"$f":"IF(J18=\"\",\"未入力あり\",IF(J18=\"はい\",\"○\",\"×\"))","v":"未入力あり"}]
[{"$f":"A18+1","v":9},null,null,null,null,null,"イ","遺伝カウンセリング及び遺伝診療等を行う部門を設置している。","A",null,null,null,"未入力あり"]
[{"$f":"A19+1","v":10},null,null,null,null,null,null,"当該部門が、関連する全ての診療科と連携可能な体制を整備している。","A",null,null,null,"未入力あり"]
[{"$f":"A20+1","v":11},null,null,null,null,null,"ウ","がん遺伝子パネル検査の二次的所見として、生殖細胞系列に病的バリアントが同定された場合の対応方針について、明文化された規定を作成し、確認検査も含めて適切に対応すること。またその運用状況について、院内で把握し必要に応じて改善を図ることができること。","A",null,null,null,"未入力あり"]
[{"$f":"A21+1","v":12},null,null,null,null,null,null,"がん遺伝子パネル検査の二次的所見として、生殖細胞系列に病的バリアントが同定された場合、確認検査も含めて適切に対応できること。","A",null,null,null,"未入力あり"]
[null,null,null,null,null,"③　がんゲノム医療に関する情報の取扱いについて"]
[{"$f":"A22+1","v":13},null,null,null,null,null,"ア","がんゲノム医療を受ける患者のエキスパートパネルに必要な情報を、エキスパートパネルを依頼したがんゲノム医療中核拠点病院、がんゲノム医療拠点病院又はエキスパートパネル実施可能がんゲノム医療連携病院に提供する体制が整備されている。","A",null,null,null,{"$f":"IF(J24=\"\",\"未入力あり\",IF(J24=\"はい\",\"○\",\"×\"))","v":"未入力あり"}]
[{"$f":"A24+1","v":14},null,null,null,null,null,"イ","患者の臨床情報やゲノム情報について、セキュリティが担保された適切な方法で収集・管理することができる体制を整備している。","A",null,null,null,{"$f":"IF(J25=\"\",\"未入力あり\",IF(J25=\"はい\",\"○\",\"×\"))","v":"未入力あり"}]
[null,null,null,null,null,"④　患者への情報提供について"]
[{"$f":"A25+1","v":15},null,null,null,null,null,"ア","病院内のがん相談支援センターにおいて、がんゲノム医療に関する情報を院内外の患者及びその家族並びに、地域の住民及び医療機関等に提供できる体制を整備している。","A",null,null,null,{"$f":"IF(J27=\"\",\"未入力あり\",IF(J27=\"はい\",\"○\",\"×\"))","v":"未入力あり"}]
[{"$f":"A27+1","v":16},null,null,null,null,null,"イ","患者及び研究対象者等からの意見、相談に応じられるよう、相談窓口を設置するなどの体制を整備している。","A",null,null,null,{"$f":"IF(J28=\"\",\"未入力あり\",IF(J28=\"はい\",\"○\",\"×\"))","v":"未入力あり"}]
[{"$f":"A28+1","v":17},null,null,null,null,null,"ウ","自施設で行っているがんに関する、国際共同治験を含む治験・ＦＩＨ試験・先進医療・患者申出療養の情報をホームページ等で分かりやすく広報している。","A",null,null,null,{"$f":"IF(J29=\"\",\"未入力あり\",IF(J29=\"はい\",\"○\",\"×\"))","v":"未入力あり"}]
[null,null,null,null,null,"⑤　医療安全管理部門"]
[{"$f":"A29+1","v":18},null,null,null,null,null,"ア","医療に関わる安全管理を行う部門（医療安全管理部門）を設置している。","A",null,null,null,{"$f":"IF(J31=\"\",\"未入力あり\",IF(J31=\"はい\",\"○\",\"×\"))","v":"未入力あり"}]
[{"$f":"A31+1","v":19},null,null,null,null,null,"イ","医療に関わる安全管理のための指針を整備すること、必要な会議を開催すること、職員研修を行うこと、適切に事故報告を行うことが可能であること等の医療安全に関する体制を整備している。","A",null,null,null,{"$f":"IF(J32=\"\",\"未入力あり\",IF(J32=\"はい\",\"○\",\"×\"))","v":"未入力あり"}]
[null,null,null,null,null,"⑥　標準治療終了（見込みを含む）前に実施するがん遺伝子パネル検査"]
[{"$f":"A32+1","v":20},null,null,null,null,null,null,"進行又は再発した固形がん患者に対して標準治療終了（見込みを含む）前に実施するがん遺伝子パネル検査について、保険診療上の枠組みや、保険外併用療養費制度を活用して実施できる体制を確保している。","C",null,null,null,{"$f":"IF(J34=\"\",\"未入力あり\",\"〇\")","v":"未入力あり"}]
[null,null,null,null,"（２）診療従事者",null,null,null,null,null,"専任：当該診療の実施担当者で、その他の診療を兼任していても差し支えないが、就業時間の少なくとも５割以上、当該診療に従事しているもの。\n専従：就業時間の少なくとも８割以上、当該診療に専ら従事しているもの。\n※専任の人数には、専従も含めて記載すること。"]
[null,null,null,null,null,"①　病理診断を行う部門の人員について"]
[{"$f":"A34+1","v":21},null,null,null,null,null,"ア","病理学に関する専門的な知識及び技能を有する常勤の医師の人数を記載してください。","A",null,"１人以上必要な数の配置が必要です。",null,{"$f":"IF(J37=\"\",\"未入力あり\",IF(J37>=1,\"○\",\"×\"))","v":"未入力あり"}]
[{"$f":"A37+1","v":22},null,null,null,null,null,"イ","病理検体の取扱いに関する専門的な知識及び技能を有する常勤の臨床検査技師の人数を記載してください。","A",null,"１人以上必要な数の配置が必要です。",null,{"$f":"IF(J38=\"\",\"未入力あり\",IF(J38>=1,\"○\",\"×\"))","v":"未入力あり"}]
[null,null,null,null,null,"②　遺伝カウンセリング等に関する人員について"]
[{"$f":"A38+1","v":23},null,null,null,null,null,"ア","遺伝カウンセリング及び遺伝診療等を行う部門に、その長として、常勤の医師を配置している。","A",null,null,null,{"$f":"IF(J40=\"\",\"未入力あり\",IF(J40=\"はい\",\"○\",\"×\"))","v":"未入力あり"}]
[{"$f":"A40+1","v":24},null,null,null,null,null,"イ","遺伝カウンセリング及び遺伝診療等を行う部門に配置されている、遺伝医学に関する専門的な知識及び技能を有する医師の人数を記載してください。\n※当該医師が部門の長を兼ねることも可とする。","A",null,"１人以上必要な数の配置が必要です。",null,{"$f":"IF(J41=\"\",\"未入力あり\",IF(J41>=1,\"○\",\"×\"))","v":"未入力あり"}]
[{"$f":"A41+1","v":25},null,null,null,null,null,"ウ","遺伝カウンセリング及び遺伝診療等を行う部門に、遺伝カウンセリングに関する専門的な知識及び技術を有する者の人数を記載してください。","A",null,"１人以上必要な数の配置が必要です。",null,{"$f":"IF(J42=\"\",\"未入力あり\",IF(J42>=1,\"○\",\"×\"))","v":"未入力あり"}]
[{"$f":"A42+1","v":26},null,null,null,null,null,"エ","患者へのがん遺伝子パネル検査の補助説明や、二次的所見が見つかった際の、遺伝カウンセリング及び遺伝診療等を行う部門への紹介をする院内の者の人数を記載してください。","A",null,"１人以上必要な数の配置が必要です。",null,{"$f":"IF(J43=\"\",\"未入力あり\",IF(J43>=1,\"○\",\"×\"))","v":"未入力あり"}]
[null,null,null,null,null,"③　がんゲノム医療に関するデータ管理を行う部門の人員について"]
[{"$f":"A43+1","v":27},null,null,null,null,null,null,"がんゲノム医療に関する情報の取扱いに関して、がんゲノム医療に関するデータ管理を行う責任者を定めている。","A",null,null,null,{"$f":"IF(J45=\"\",\"未入力あり\",IF(J45=\"はい\",\"○\",\"×\"))","v":"未入力あり"}]
[null,null,null,null,null,"④　医療安全管理部門について"]
[{"$f":"A45+1","v":28},null,null,null,null,null,"ア","医療安全管理責任者を配置している。","A",null,null,null,{"$f":"IF(J47=\"\",\"未入力あり\",IF(J47=\"はい\",\"○\",\"×\"))","v":"未入力あり"}]
[{"$f":"A47+1","v":29},null,null,null,null,null,"イ","医療安全管理部門に、専任の医師、薬剤師及び看護師をそれぞれ１人以上必要な数配置している。","A",null,null,null,{"$f":"IF(J48=\"\",\"未入力あり\",IF(J48=\"はい\",\"○\",\"×\"))","v":"未入力あり"}]
[null,null,null,"（参考）研究の実施体制"]
[{"$f":"A48+1","v":30},null,null,null,"(1)",null,null,"「人を対象とする生命科学・医学系研究に関する倫理指針」（令和３年文部科学省・厚生労働省・経済産業省告示第１号）が適用される研究において、がん組織及び非がん組織等のペア検体を凍結保存する場合を含め、患者の同意の下で、臓器横断的に検体を適切に保管・管理する体制を整備している。","-",null,null,null,{"$f":"IF(J50=\"\",\"未入力あり\",\"〇\")","v":"未入力あり"}]
[{"$f":"A50+1","v":31},null,null,null,"(２)",null,null,"組織検体の取扱いについて、一般社団法人日本病理学会策定による「ゲノム研究用病理組織検体取扱い規程」に基づき明文化されており、組織検体が適切に処理・保管・管理される体制を整備している。","-",null,null,null,{"$f":"IF(J51=\"\",\"未入力あり\",\"〇\")","v":"未入力あり"}]
[{"$f":"A51+1","v":32},null,null,null,"(３)",null,null,"手術検体等生体試料の新鮮凍結保存が可能な体制を整備している。","-",null,null,null,{"$f":"IF(J52=\"\",\"未入力あり\",\"〇\")","v":"未入力あり"}]
[null,null,null,"2　診療及び研究等の実績"]
[null,null,null,null,"（１）　がん遺伝子パネル検査の実績について"]
[{"$f":"A52+1","v":33},null,null,null,null,null,null,"質の保たれたがんゲノム医療を継続的に提供するための対応（症例を経験するための人材交流等）を連携する中核拠点病院または拠点病院と共に構築している。","A",null,null,null,{"$f":"IF(J55=\"\",\"未入力あり\",IF(J55=\"はい\",\"○\",\"×\"))","v":"未入力あり"}]
[null,null,null,null,"（２）　遺伝カウンセリング及び遺伝診療の実績について"]
[{"$f":"A55+1","v":34},null,null,null,null,"①",null,"遺伝カウンセリング及び遺伝診療（血縁者に対するカウンセリングを含む。）を、１年間に20 例以上に対して実施している。","A",null,"※申請時までの過去１年間の件数を記載してください。",null,{"$f":"IF(J57=\"\",\"未入力あり\",IF(J57=\"はい\",\"○\",\"×\"))","v":"未入力あり"}]
[{"$f":"A57+1","v":35},null,null,null,null,null,null,"「遺伝カウンセリング」を実施した１年間の合計人数を記載してください。（人）","-",null,null,null,{"$f":"IF(J58=\"\",\"未入力あり\",\"〇\")","v":"未入力あり"}]
[{"$f":"A58+1","v":36},null,null,null,null,null,null,"「遺伝性疾患療養指導管理料」の１年間の算定回数を記載してください。（件）","-",null,null,null,"未入力あり"]
[37,null,null,null,null,null,null,"遺伝性腫瘍に係る遺伝カウンセリング及び遺伝診療（血縁者に対するカウンセリングを含む。）を１年間に５例以上に対して実施している。","A",null,"※申請時までの過去１年間の件数を記載してください。",null,{"$f":"IF(J60=\"\",\"未入力あり\",IF(J60=\"はい\",\"○\",\"×\"))","v":"未入力あり"}]
[38,null,null,null,null,null,null,"遺伝性腫瘍に係る「遺伝カウンセリング」を実施した１年間の合計人数を記載してください。（人）","-",null,null,null,{"$f":"IF(J61=\"\",\"未入力あり\",\"〇\")","v":"未入力あり"}]
[39,null,null,null,null,null,null,"遺伝性腫瘍に係る「遺伝性疾患療養指導管理料」の１年間の算定回数を記載してください。（件）","-",null,null,null,"未入力あり"]
[40,null,null,null,null,null,null,"遺伝性疾患療養指導管理料の注１から注３までに関する施設基準を満たしている。","A",null,null,null,{"$f":"IF(J63=\"\",\"未入力あり\",IF(J63=\"はい\",\"○\",\"×\"))","v":"未入力あり"}]
[null,null,null,null,null,"②",null,"※本項目は、２-（２）-①の要件を満たさない場合のみ記載してください"]
[{"$f":"A63+1","v":41},null,null,null,null,null,null,"遺伝カウンセリングに関して、過去にがんゲノム医療中核拠点病院等で遺伝カウンセリングを３年以上かつ 20 例以上に対して実施した者を配置している。","A",null,null,null,{"$f":"IF(AND($J$57=\"はい\",$J$60=\"はい\",$J$63=\"はい\"),\"\",IF(OR($J$57=\"いいえ\",$J$60=\"いいえ\",$J$63=\"いいえ\",COUNTA($J$65:$J$68)>0),IF(J65=\"\",\"未入力あり\",IF(J65=\"はい\",\"○\",\"×\")),\"\"))","v":""}]
[42,null,null,null,null,null,null,{"$f":"\"遺伝カウンセリングに関して、過去にがんゲノム医療中核拠点病院等で遺伝性腫瘍に係る遺伝カウンセリングを３年以上かつ５例以上に対して実施した者を配置している。なお、質問番号\"&A65&\"の者が本要件を兼ねることも可とする。\"","v":"遺伝カウンセリングに関して、過去にがんゲノム医療中核拠点病院等で遺伝性腫瘍に係る遺伝カウンセリングを３年以上かつ５例以上に対して実施した者を配置している。なお、質問番号41の者が本要件を兼ねることも可とする。"},"A",null,null,null,{"$f":"IF(AND($J$57=\"はい\",$J$60=\"はい\",$J$63=\"はい\"),\"\",IF(OR($J$57=\"いいえ\",$J$60=\"いいえ\",$J$63=\"いいえ\",COUNTA($J$65:$J$68)>0),IF(J66=\"\",\"未入力あり\",IF(J66=\"はい\",\"○\",\"×\")),\"\"))","v":""}]
[43,null,null,null,null,null,null,"遺伝診療に関して、過去にがんゲノム医療中核拠点病院等で遺伝診療を３年以上かつ20例以上に対して実施した医師を配置している。","A",null,null,null,{"$f":"IF(AND($J$57=\"はい\",$J$60=\"はい\",$J$63=\"はい\"),\"\",IF(OR($J$57=\"いいえ\",$J$60=\"いいえ\",$J$63=\"いいえ\",COUNTA($J$65:$J$68)>0),IF(J67=\"\",\"未入力あり\",IF(J67=\"はい\",\"○\",\"×\")),\"\"))","v":""}]
[44,null,null,null,null,null,null,{"$f":"\"遺伝診療に関して、過去にがんゲノム医療中核拠点病院等で遺伝性腫瘍に係る遺伝診療を３年以上かつ５例以上に対して実施した医師を配置している。なお、質問番号\"&A67&\"の医師が本要件を兼ねることも可とする。\"","v":"遺伝診療に関して、過去にがんゲノム医療中核拠点病院等で遺伝性腫瘍に係る遺伝診療を３年以上かつ５例以上に対して実施した医師を配置している。なお、質問番号43の医師が本要件を兼ねることも可とする。"},"A",null,null,null,{"$f":"IF(AND($J$57=\"はい\",$J$60=\"はい\",$J$63=\"はい\"),\"\",IF(OR($J$57=\"いいえ\",$J$60=\"いいえ\",$J$63=\"いいえ\",COUNTA($J$65:$J$68)>0),IF(J68=\"\",\"未入力あり\",IF(J68=\"はい\",\"○\",\"×\")),\"\"))","v":""}]
[null,null,null,null,"（３）自施設でがん遺伝子パネル検査を実施した患者について"]
[{"$f":"A68+1","v":45},null,null,null,null,null,null,"自施設でがん遺伝子パネル検査を実施した患者について、他院へ紹介した症例も含めて、エキスパートパネルで推奨された治療への到達状況や転帰を把握できること。","A",null,null,null,{"$f":"IF(J70=\"\",\"未入力あり\",IF(J70=\"はい\",\"○\",\"×\"))","v":"未入力あり"}]
[null,null,null,"３　連携体制・人材育成"]
[null,null,null,null,"（1）　がんゲノム医療に従事する医療者について"]
[{"$f":"A70+1","v":46},null,null,null,null,null,null,"自らが連携するがんゲノム医療中核拠点病院が開催するがんゲノム医療に係る研修等の受講を促すよう努めること。\n※エキスパートパネルにおいて、がんゲノム医療拠点病院と連携する場合は、原則として、当該がんゲノム医療拠点病院が連携するがんゲノム医療中核拠点病院の開催する研修に参加すること。","A",null,null,null,{"$f":"IF(J73=\"\",\"未入力あり\",IF(J73=\"はい\",\"○\",\"×\"))","v":"未入力あり"}]
[null,null,null,null,"（２）　臨床情報やゲノム情報の収集について"]
[{"$f":"A73+1","v":47},null,null,null,null,null,null,"エキスパートパネルの実施を依頼した病院と協力して、臨床情報やゲノム情報を収集できること。収集した情報については、がんゲノム情報管理センターへ登録する体制があること。","A",null,null,null,{"$f":"IF(J75=\"\",\"未入力あり\",IF(J75=\"はい\",\"○\",\"×\"))","v":"未入力あり"}]
[null,null,null,null,"（３）　エキスパートパネルについて"]
[{"$f":"A75+1","v":48},null,null,null,null,null,null,"エキスパートパネルについて、原則として所属するエキスパートパネル連携グループ内の連携するがんゲノム医療中核拠点病院又はがんゲノム医療拠点病院に依頼できること。また、専門性等を考慮し、所属するエキスパートパネル連携グループ内のがんゲノム医療中核拠点病院、がんゲノム医療拠点病院又はエキスパートパネル実施可能がんゲノム医療連携病院に依頼することも可とする。","A",null,null,null,{"$f":"IF(J77=\"\",\"未入力あり\",IF(J77=\"はい\",\"○\",\"×\"))","v":"未入力あり"}]
[null,null,null,null,"（４）　他施設にエキスパートパネルを依頼した患者について"]
[{"$f":"A77+1","v":49},null,null,null,null,null,null,"他施設に依頼した患者についてのエキスパートパネルが実施される際には、がんゲノム医療連携病院の主治医又は当該主治医に代わる医師が参加し、示された内容について、患者に説明できる体制を整備していること。ただし、主治医又は当該主治医に代わる医師が、エキスパートパネルに必要な治療歴や家族歴等に関する診療情報を提供している場合には、エキスパートパネルへの参加を必須としない。","A",null,null,null,{"$f":"IF(J79=\"\",\"未入力あり\",IF(J79=\"はい\",\"○\",\"×\"))","v":"未入力あり"}]
[null,null,null,null,"（５）　がんに関する、治験・先進医療・患者申出療養その他臨床研究等の実施に\nついて"]
[{"$f":"A79+1","v":50},null,null,null,null,null,null,"がんに関する、治験・先進医療・患者申出療養その他臨床研究等の実施について、がんゲノム医療中核拠点病院等と協力し、がん遺伝子パネル検査の結果をもとに、エキスパートパネルで推奨された治療の実施につなげられる体制を確保している。","A",null,null,null,{"$f":"IF(J81=\"\",\"未入力あり\",IF(J81=\"はい\",\"○\",\"×\"))","v":"未入力あり"}]
[null,null,null,"４　その他"]
[null,null,null,null,null,null,null,"厚生労働大臣が指定するがん診療連携拠点病院等、小児がん拠点病院、又は都道府県小児がん拠点病院ではない病院の場合は、以下の項目を満たすこと。（がん診療連携拠点病院等、小児がん拠点病院、又は都道府県小児がん拠点病院の場合は記載する必要はありません。）"]
[null,null,null,null,"（1）　院内がん登録について"]
[{"$f":"A81+1","v":51},null,null,null,null,"①　",null,"がん登録等の推進に関する法律（平成25年法律第111号）第44条第１項の規定に基づき定められた、院内がん登録の実施に係る指針（平成27年厚生労働省告示第470号）に即して院内がん登録を実施している。","A",null,null,null,{"$f":"IF($J$6=\"いいえ\",IF(J85=\"\",\"未入力あり\",IF(J85=\"はい\",\"○\",\"×\")),\"\")","v":""}]
[{"$f":"A85+1","v":52},null,null,null,null,"②　",null,"国立がん研究センターが実施する研修で認定を受けている、院内がん登録の実務を担う者の人数を記載してください。","A",null,"※１人以上必要な数の配置が必要です。",null,{"$f":"IF($J$6=\"いいえ\",IF(J86=\"\",\"未入力あり\",IF(J86>=1,\"○\",\"×\")),\"\")","v":""}]
[{"$f":"A86+1","v":53},null,null,null,null,null,null,"中級認定者の認定を受けている、専従の院内がん登録の実務を担う者の人数を記載してください。","C",null,"※中級認定者の認定を受けていることが望ましい。",null,{"$f":"IF($J$6=\"いいえ\",IF(J87=\"\",\"未入力あり\",\"〇\"),\"\")","v":""}]
[{"$f":"A87+1","v":54},null,null,null,null,null,null,"初級認定者の認定を受けている、専従の院内がん登録の実務を担う者の人数を記載してください。","-",null,null,null,{"$f":"IF($J$6=\"いいえ\",IF(J88=\"\",\"未入力あり\",\"〇\"),\"\")","v":""}]
[{"$f":"A88+1","v":55},null,null,null,null,"③　",null,"毎年、最新の登録情報や予後を含めた情報を国立がん研究センターに提供している。","A",null,null,null,{"$f":"IF($J$6=\"いいえ\",IF(J89=\"\",\"未入力あり\",IF(J89=\"はい\",\"○\",\"×\")),\"\")","v":""}]
[{"$f":"A89+1","v":56},null,null,null,null,"④　",null,"院内がん登録を活用することにより、都道府県の実施するがん対策等に必要な情報を提供している。","A",null,null,null,{"$f":"IF($J$6=\"いいえ\",IF(J90=\"\",\"未入力あり\",IF(J90=\"はい\",\"○\",\"×\")),\"\")","v":""}]
[null,null,null,null,"（2）　急変時等の緊急時について"]
[{"$f":"A90+1","v":57},null,null,null,null,null,null,"外来化学療法を実施しているがん患者が急変時等の緊急時に入院できる体制を確保している。","A",null,null,null,{"$f":"IF($J$6=\"いいえ\",IF(J92=\"\",\"未入力あり\",IF(J92=\"はい\",\"○\",\"×\")),\"\")","v":""}]
[null,null,null,null,"（３）　薬物療法について"]
[{"$f":"A92+1","v":58},null,null,null,null,null,null,"薬物療法のレジメンを審査し、組織的に管理する委員会を設置している。","A",null,null,null,{"$f":"IF($J$6=\"いいえ\",IF(J94=\"\",\"未入力あり\",IF(J94=\"はい\",\"○\",\"×\")),\"\")","v":""}]
[null,null,null,null,"（４）　保険適用外の免疫療法等について"]
[{"$f":"A94+1","v":59},null,null,null,null,null,null,"保険適用外の免疫療法等について、治験、先進医療、臨床研究法（平成29年法律第16号）で定める特定臨床研究又は再生医療等の安全性の確保等に関する法律（平成25年法律第85号）に基づき提供される再生医療等の枠組み以外の形では、実施・推奨していない。","A",null,null,null,{"$f":"IF($J$6=\"いいえ\",IF(J96=\"\",\"未入力あり\",IF(J96=\"はい\",\"○\",\"×\")),\"\")","v":""}]
[null,null,null,null,"（５）　患者に対する適切な情報提供について"]
[{"$f":"A96+1","v":60},null,null,null,null,null,null,"患者に対する適切な病院情報の提供を図る観点から、医療機能情報提供制度に基づき、医療情報ネットにおいて公表する自施設の医療機能情報について、１年に１回以上の報告を行い、修正又は変更が生じた場合、必要な更新を行っている。","A",null,null,null,{"$f":"IF($J$6=\"いいえ\",IF(J98=\"\",\"未入力あり\",IF(J98=\"はい\",\"○\",\"×\")),\"\")","v":""}]
[{"$f":"A98+1","v":61},null,null,null,null,null,null,"最終報告の日付を記入してください。（yyyymmdd）",null,null,null,null,{"$f":"IF(AND($J$6=\"いいえ\",$J$98=\"はい\"),IF(J99=\"\",\"未入力あり\",\"〇\"),\"\")","v":""}]
[null,null,null,null,"（６)　がん相談支援センター"]
[{"$f":"A99+1","v":62},null,null,null,null,null,null,"相談支援を行う機能を有する部門（がん相談支援センター）を設置し、①から⑨の体制を確保した上で、がん患者や家族等が持つ医療や療養等の課題に関して、病院を挙げて全人的な相談支援を行っている。","A",null,null,null,{"$f":"IF($J$6=\"いいえ\",IF(J101=\"\",\"未入力あり\",IF(J101=\"はい\",\"○\",\"×\")),\"\")","v":""}]
[{"$f":"A101+1","v":63},null,null,null,null,null,null,"必要に応じてオンラインでの相談を受け付けるなど、情報通信技術等を活用している。","A",null,null,null,{"$f":"IF($J$6=\"いいえ\",IF(J102=\"\",\"未入力あり\",IF(J102=\"はい\",\"○\",\"×\")),\"\")","v":""}]
[{"$f":"A102+1","v":64},null,null,null,null,null,null,"コミュニケーションに配慮が必要な者や、日本語を母国語としていない者等への配慮を適切に実施できる体制を確保している。","A",null,null,null,{"$f":"IF($J$6=\"いいえ\",IF(J103=\"\",\"未入力あり\",IF(J103=\"はい\",\"○\",\"×\")),\"\")","v":""}]
[65,null,null,null,null,null,null,"情報取得や意思疎通に配慮が必要な者への対応マニュアルを作成している。","-",null,null,null,{"$f":"IF($J$6=\"いいえ\",IF(J104=\"\",\"未入力あり\",\"〇\"),\"\")","v":""}]
[66,null,null,null,null,"①",null,"国立がん研究センターによるがん相談支援センター相談員基礎研修（１）～（３）を修了した専従及び専任の相談支援に携わる者をそれぞれ１人ずつ以上必要な数配置している。","A",null,"\n※国立がん研究センターより示された「がん診療連携拠点病院等の整備に関する指針に定めるがん相談支援センター相談員基礎研修（３）の取り扱いについて」に沿って実施された、がん相談支援センター相談員基礎研修（３）を修了した者は、「国立がん研究センターによるがん相談支援センター相談員基礎研修（３）」を修了した者とみなします。",null,{"$f":"IF($J$6=\"いいえ\",IF(J105=\"\",\"未入力あり\",IF(J105=\"はい\",\"○\",\"×\")),\"\")","v":""}]
[67,null,null,null,null,null,null,"がん相談支援センター相談員基礎研修（１）～（３）を修了した専従の相談支援に携わる者の人数を記載してください。","A",null,"※１人以上必要な数の配置が必要です。",null,{"$f":"IF($J$6=\"いいえ\",IF(J106=\"\",\"未入力あり\",IF(J106>=1,\"○\",\"×\")),\"\")","v":""}]
[68,null,null,null,null,null,null,"がん相談支援センター相談員基礎研修（１）～（３）を修了した専任の相談支援に携わる者の人数を記載してください。","A",null,"上記の専従の者は含めないでください。\n（専任であり、かつ専従でない者の人数を記載ください。）\n※１人以上必要な数の配置が必要です。",null,{"$f":"IF($J$6<>\"いいえ\",\"\",IF($J$106>=2,\"\",IF(J107=\"\",\"未入力あり\",IF(J107>=1,\"○\",\"×\"))))","v":""}]
[69,null,null,null,null,null,null,"当該相談支援に携わる者のうち１名は、社会福祉士である。","C",null,null,null,{"$f":"IF($J$6=\"いいえ\",IF(J108=\"\",\"未入力あり\",\"〇\"),\"\")","v":""}]
[70,null,null,null,null,null,null,"がん相談支援センター相談員基礎研修（１）～（３）を修了した専従もしくは専任の相談支援に携わる者のうち、社会福祉士の人数を記載してください。","C",null,null,null,{"$f":"IF($J$6=\"いいえ\",IF(J109=\"\",\"未入力あり\",\"〇\"),\"\")","v":""}]
[71,null,null,null,null,"②",null,"相談支援に携わる者は、対応の質の向上のために、がん相談支援センター相談員研修等により定期的な知識の更新に努めている。","A",null,null,null,{"$f":"IF($J$6=\"いいえ\",IF(J110=\"\",\"未入力あり\",IF(J110=\"はい\",\"○\",\"×\")),\"\")","v":""}]
[72,null,null,null,null,"③",null,"院内及び地域の診療従事者の協力を得て、院内外のがん患者及びその家族並びに地域の住民及び医療機関等からの相談等に対応する体制を整備している。","A",null,null,null,""]
[73,null,null,null,null,null,null,"相談支援に関し十分な経験を有するがん患者団体との連携協力体制の構築に積極的に取り組んでいる。","A",null,null,null,""]
[74,null,null,null,null,"④",null,"がん相談支援センターについて周知するため、以下の体制を整備している。","A",null,null,null,""]
[75,null,null,null,null,null,"ア","外来初診時から治療開始までを目処に、がん患者及びその家族が必ず一度はがん相談支援センターを訪問（必ずしも具体的な相談を伴わない）することができる体制を整備し、相談を希望する場合には適切に案内している。","A",null,null,null,""]
[76,null,null,null,null,null,"イ","治療に備えた事前の面談や準備のフローに組み込むなど、診療の経過の中で患者が必要とするときに確実に利用できるよう繰り返し案内を行っている。","A",null,null,null,""]
[77,null,null,null,null,null,null,"自施設の状況に応じて、病棟、外来、地域連携、入退院支援、相談支援等の関係部門が、看護師を含む関係職種と連携し、患者及びその家族の相談内容に応じて必要な支援につなぐ体制を整備している。","A",null,null,null,""]
[78,null,null,null,null,null,"ウ","院内の見やすい場所にがん相談支援センターについて分かりやすく掲示している。","A",null,null,null,""]
[79,null,null,null,null,null,"エ","地域の住民や医療・在宅・介護福祉等の関係機関に対し、がん相談支援センターに関する広報を行っている。","A",null,null,null,""]
[80,null,null,null,null,null,null,"がん相談支援センターに関する広報に、自施設に通院していない者からの相談にも対応する旨を明記している。","A",null,null,null,""]
[81,null,null,null,null,null,"オ","がん相談支援センターを初めて訪れた者の数を把握し、認知度の継続的な改善に努めている。","A",null,null,null,""]
[82,null,null,null,null,"⑤",null,"がん相談支援センターの業務内容について、相談者からフィードバックを得る体制を整備している。","A",null,null,null,""]
[83,null,null,null,null,null,null,"フィードバックの内容を自施設の相談支援の質の向上のために活用するとともに、都道府県協議会で報告し、他施設とも情報共有している。","A",null,null,null,""]
[84,null,null,null,null,"⑥",null,"患者からの相談に対し、必要に応じて速やかに院内の診療従事者が対応できるよう、病院長又はそれに準じる者が統括するなど、がん相談支援センターと院内の診療従事者が協働する体制を整備している。","A",null,null,null,""]
[85,null,null,null,null,null,null,"当該体制の運用状況及び課題について、関係部門及び関係職種が参画し、定期的に検討している。","A",null,null,null,""]
[86,null,null,null,null,null,null,"相談支援に携わる者に対する教育機会を提供し、相談支援サービスの質の向上に取り組んでいる。","A",null,null,null,""]
[87,null,null,null,null,"⑦",null,"がん相談支援センターの相談支援に携わる者は、当該都道府県に整備されている都道府県がん診療連携拠点病院が実施する相談支援に携わる者を対\n象とした継続的かつ系統的な研修を受講している。","A",null,null,null,""]
[88,null,null,null,null,"⑧",null,"がん患者及びその家族が心の悩みや体験等を語り合うための患者サロン等の場を設置している。","A",null,null,null,""]
[89,null,null,null,null,null,null,"患者サロン等について、オンライン環境での開催も可能としている。","A",null,null,null,""]
[90,null,null,null,null,null,null,"患者サロン等の開催には、一定の研修を受けたピア・サポーターを活用する又は十分な経験を持つ患者団体等と連携して実施するよう努めている。","A",null,null,null,""]
[91,null,null,null,null,null,null,"ピア・サポーターの活用にあたっては、厚生労働省委託事業がん総合相談に携わる者に対する研修事業による「がんサポートグループ企画・運営者のための研修会」を受講し、取組の参考としている。","C",null,null,null,{"$f":"IF($J$6=\"いいえ\",IF(J130=\"\",\"未入力あり\",\"〇\"),\"\")","v":""}]
[{"$f":"A130+1","v":92},null,null,null,null,"⑨",null,"がん相談支援センターの業務として、以下に示す項目等について、がん相談支援センターが窓口となり、自施設の関係部門及び医療機関と連携し、病院全体で対応できる体制を整備している。","A",null,null,null,{"$f":"IF($J$6=\"いいえ\",IF(J131=\"\",\"未入力あり\",IF(J131=\"はい\",\"○\",\"×\")),\"\")","v":""}]
[{"$f":"A131+1","v":93},null,null,null,null,null,"ア","がんの予防・検診・治療に関する一般的な情報提供","-",null,null,null,""]
[{"$f":"A132+1","v":94},null,null,null,null,null,"イ","自施設の診療機能及び、連携先となる医療機関に関する医療提供体制の情報収集、提供","-",null,null,null,""]
[{"$f":"A133+1","v":95},null,null,null,null,null,"ウ","患者の治療に関する意思決定支援、セカンドオピニオンに関する情報提供","-",null,null,null,""]
[96,null,null,null,null,null,"エ","がん治療に伴う生殖機能への影響や、生殖機能の温存に関する相談","-",null,null,null,""]
[97,null,null,null,null,null,"オ","小児がんの長期フォローアップに関する相談","-",null,null,null,""]
[98,null,null,null,null,null,"カ","がんゲノム医療に関する相談","-",null,null,null,""]
[99,null,null,null,null,null,"キ","希少がんに関する相談","-",null,null,null,""]
[100,null,null,null,null,null,"ク","アピアランスケアに関する情報提供・相談支援","-",null,null,null,""]
[101,null,null,null,null,null,"ケ","がん患者の療養生活全般（経済的支援を含む）に関する相談支援及び情報提供","-",null,null,null,""]
[102,null,null,null,null,null,"コ","就学・就労（産業保健総合支援センターや職業安定所等との効果的な連携を含む）に関する支援","-",null,null,null,""]
[103,null,null,null,null,null,"サ","ＡＹＡ世代のがん患者に対する治療療養や就学、就労支援に関する相談","-",null,null,null,""]
[104,null,null,null,null,null,"シ","高齢者のがん治療にかかる支援に関する相談","-",null,null,null,""]
[105,null,null,null,null,null,"ス","障害のある患者への支援に関する相談","-",null,null,null,""]
[106,null,null,null,null,null,"セ","医療関係者と患者会、ピア・サポーター等が共同で運営するサポートグループ活動や患者サロンの定期開催等の患者活動に対する支援","-",null,null,null,""]
[107,null,null,null,null,null,"ソ","その他相談支援に関すること","-",null,null,null,""]

{"sheet":"別紙１（未充足要件）","index":4,"n_rows":30,"n_cols":5,"rows_kept":30,"cut":false,"hidden":false,"merged":[]}
[null,"別紙１（未充足要件）"]
[null,null,null,"記載の要否",{"$f":"IF(COUNTIF(B11:B30,\"<>\")=0,\"記載不要\",IF(COUNTIFS(B11:B30,\"<>\",D11:D30,\"\")+COUNTIFS(B11:B30,\"<>\",E11:E30,\"\")>0,\"未入力\",\"入力済み\"))","v":"記載不要"}]
[null,null,null,"病院名",{"$f":"'様式２（表紙）'!B4&\"\"","v":""}]
[null,null,null,"時期・期間","申請時点"]
[]
[null,"・様式3（機能別）の該当指定要件のAのうち満たしていない項目について、満たしていない項目とその理由と今後の見通し等について具体的に記載してください。"]
[null,"・右上について、最初は「記載不要」と表示されます。様式３（機能別）を入力後に、上部にある「様式３（機能別）」シートの入力後、クリックしてください。」ボタンを押下ください。未充足要件が抽出されます。"]
[]
[null,"質問番号","申請時点で満たせていない要件","現状の説明","充足見込み時期"]
["例","●","医療安全管理部門に、専任の医師、薬剤師及び看護師をそれぞれ１人以上必要な数配置している。","令和８年９月１日時点では看護師は配置できていない","令和８年12月１日段階での整備を行う予定である。"]
[1]
[2]
[3]
[4]
[5]
[6]
[7]
[8]
[9]
[10]
[11]
[12]
[13]
[14]
[15]
[16]
[17]
[18]
[19]
[20]